fUST/lending_fUST_20240509
["ID","MTS","AMOUNT","RATE_DAILY","PERIOD"]
[326666177,1715208661856,-500.0,0.00025753,2]
[326666179,1715208661866,-500.0,0.00025753,2]
[326666181,1715208661876,-500.0,0.00025753,2]
[326666183,1715208661885,-500.0,0.00025753,2]
[326666185,1715208661894,-500.0,0.00025753,2]
[326666187,1715208661904,-1475.66,0.00025753,2]
[326666189,1715208661913,-500.0,0.00025753,2]
[326666191,1715208661922,-500.0,0.00025753,2]
[326666193,1715208661932,-500.0,0.00025753,2]
[326666195,1715208661941,-14733.49,0.00025753,2]
[326666197,1715208661951,-2338.95,0.00025753,2]
[326666199,1715208661961,-500.0,0.00025753,2]
[326666201,1715208661970,-1228.72,0.00025753,2]
[326666203,1715208661980,-465.26473242,0.00025753,2]
[326666205,1715208661989,-640.85,0.00025753,2]
[326666207,1715208661999,-500.0,0.00025753,2]
[326666209,1715208662008,-500.0,0.00025753,2]
[326666211,1715208662019,-500.0,0.00025753,2]
[326666213,1715208662028,-500.0,0.00025753,2]
[326666215,1715208662037,-2706.96,0.00025753,2]
[326666217,1715208662046,-500.0,0.00025753,2]
[326666219,1715208662060,-500.0,0.00025753,2]
[326666221,1715208662073,-500.0,0.00025753,2]
[326666223,1715208662082,-797.21,0.00025753,2]
[326666225,1715208662092,-500.0,0.00025753,2]
[326666227,1715208662102,-500.0,0.00025753,2]
[326666229,1715208662112,-500.0,0.00025753,2]
[326666231,1715208662121,-500.0,0.00025753,2]
[326666233,1715208662130,-500.0,0.00025753,2]
[326666235,1715208662140,-500.0,0.00025753,2]
[326666237,1715208662149,-500.0,0.00025753,2]
[326666239,1715208662160,-237.86228622,0.00025753,2]
[326666241,1715208662169,-500.0,0.00025753,2]
[326666243,1715208662178,-500.0,0.00025753,2]
[326666245,1715208662188,-2454.6,0.00025753,2]
[326666247,1715208662198,-1501.51,0.00025753,2]
[326666249,1715208662207,-500.0,0.00025753,2]
[326666251,1715208662217,-500.0,0.00026027,2]
[326666253,1715208662227,-500.0,0.00026027,2]
[326666255,1715208662236,-515.93870093,0.00026027,2]
[326666257,1715208662245,-500.0,0.00026027,2]
[326666259,1715208662254,-500.0,0.00026027,2]
[326666261,1715208662263,-500.0,0.00026027,2]
[326666263,1715208662273,-500.0,0.00026027,2]
[326666265,1715208662282,-500.0,0.00026027,2]
[326666267,1715208662291,-500.0,0.00026027,2]
[326666269,1715208662300,-500.0,0.00026027,2]
[326666271,1715208662314,-529.85,0.00026027,2]
[326666273,1715208662323,-263.02545428,0.00026027,2]
[326666275,1715208662332,-500.0,0.00026027,2]
[326666277,1715208662341,-786.54,0.00026027,2]
[326666279,1715208662351,-500.0,0.00026027,2]
[326666281,1715208662360,-500.0,0.00026027,2]
[326666283,1715208662369,-500.0,0.00026027,2]
[326666285,1715208662378,-500.0,0.00026027,2]
[326666287,1715208662390,-500.0,0.00026027,2]
[326666289,1715208662400,-207.96,0.00026027,2]
[326666291,1715208662409,-500.0,0.00026027,2]
[326666293,1715208662418,-500.0,0.00026027,2]
[326666295,1715208662427,-500.0,0.00026027,2]
[326666297,1715208662437,-500.0,0.00026027,2]
[326666299,1715208662446,-500.0,0.00026027,2]
[326666301,1715208662455,-500.0,0.00026027,2]
[326666303,1715208662465,-500.0,0.00026027,2]
[326666305,1715208662475,-500.0,0.00026027,2]
[326666307,1715208662484,-500.0,0.00026027,2]
[326666309,1715208662493,-500.0,0.00026027,2]
[326666311,1715208662502,-500.0,0.00026027,2]
[326666313,1715208662512,-261.87,0.00026027,2]
[326666315,1715208662521,-500.0,0.00026027,2]
[326666317,1715208662530,-500.0,0.00026027,2]
[326666319,1715208662539,-500.0,0.00026027,2]
[326666321,1715208662548,-182.67,0.00026027,2]
[326666323,1715208662557,-500.0,0.00026027,2]
[326666325,1715208662566,-500.0,0.00026027,2]
[326666327,1715208662575,-500.0,0.00026027,2]
[326666329,1715208662584,-500.0,0.00026027,2]
[326666339,1715208662668,-500.0,0.00026027,2]
[326666341,1715208662677,-500.0,0.00026027,2]
[326666343,1715208662687,-500.0,0.00026027,2]
[326666345,1715208662697,-500.0,0.00026027,2]
[326666347,1715208662706,-500.0,0.00026027,2]
[326666349,1715208662716,-500.0,0.00026027,2]
[326666351,1715208662725,-500.0,0.00026027,2]
[326666353,1715208662734,-623.97,0.00026027,2]
[326666355,1715208662744,-500.0,0.00026027,2]
[326666357,1715208662753,-500.0,0.00026027,2]
[326666359,1715208662762,-500.0,0.00026027,2]
[326666361,1715208662771,-500.0,0.00026027,2]
[326666363,1715208662780,-568.5026865,0.00026027,2]
[326666365,1715208662789,-488.13510335,0.00026027,2]
[326666367,1715208662798,-500.0,0.00026027,2]
[326666369,1715208662807,-545.79534876,0.00026027,2]
[326666421,1715208663282,-255.03338892,0.00019997,2]
[326666424,1715208663304,-244.96661108,0.00019997,2]
[326666426,1715208663321,-302.47068707,0.00019997,2]
[326666427,1715208663332,-500.0,0.00019997,2]
[326666428,1715208663349,-500.0,0.00019997,2]
[326666429,1715208663364,-500.0,0.00019997,2]
[326666430,1715208663379,-500.0,0.00019997,2]
[326666431,1715208663394,-500.0,0.00019997,2]
[326666432,1715208663410,-500.0,0.00024657,2]
[326666433,1715208663425,-500.0,0.00024657,2]
[326666434,1715208663439,-500.0,0.00024657,2]
[326666435,1715208663452,-380.0,0.00024658,2]
[326666436,1715208663468,-3613.78,0.00024931,2]
[326666439,1715208663481,-500.0,0.00024931,2]
[326666441,1715208663492,-500.0,0.00024931,2]
[326666443,1715208663505,-167.33884761,0.00025205,2]
[326666657,1715208695163,285.29538196,0.00015,2]
[326666666,1715209214788,-154.76784823,0.00018266,2]
[326666667,1715209214824,-1894.38518573,0.00018267,2]
[326666668,1715209214860,-727.84696604,0.00018267,2]
[326666669,1715209248650,744.14167907,0.000138,2]
[326666670,1715209271187,194.10867769,9.999e-05,2]
[326666673,1715209300600,186.57507441,9.999e-05,2]
[326666674,1715209318866,875.5072483,9.999e-05,2]
[326666675,1715209722146,940.74470998,0.00015,2]
[326666681,1715209840499,-1894.38518573,0.00015775,2]
[326666684,1715209840510,-2035.00760446,0.00015776,2]
[326666694,1715209840717,-470.98672516,0.00015776,2]
[326666698,1715209840731,-2704.00567038,0.00015776,2]
[326666701,1715209840742,-168.73595719,0.00015778,2]
[326666704,1715209840753,-485.533225,0.0001589,2]
[326666707,1715209840764,-212.31897814,0.0001661,2]
[326666708,1715209840777,-24900.0,0.00016611,2]
[326666711,1715209840787,-1170.002164,0.00016796,2]
[326666714,1715209840799,-250.0,0.00017428,2]
[326666717,1715209840810,-219.52006358,0.00018266,2]
[326666720,1715209840819,-192.77705139,0.00018266,2]
[326666722,1715209840830,-184.9507612,0.00018266,2]
[326666724,1715209840839,-744.57696609,0.00018267,2]
[326666726,1715209840849,-285.29538196,0.00018267,2]
[326666728,1715209840860,-201.34757025,0.00018691,2]
[326666730,1715209840873,-685.51970393,0.000189,2]
[326666731,1715209840883,-3072.48979337,0.00019762,2]
[326666732,1715209840893,-306.009666,0.00019814,2]
[326666733,1715209840904,-366.94118745,0.00019859,2]
[326666734,1715209840914,-500.0,0.00019859,2]
[326666735,1715209840924,-484.04567951,0.00019859,2]
[326666736,1715209840934,-5653.2635821,0.0001986,2]
[326666959,1715209845374,-160.01,0.0001985,3]
[326666960,1715209845388,-53628.09439474,0.0001986,2]
[326666961,1715209845398,-929.6379252,0.00019862,2]
[326666962,1715209845408,-330.43257549,0.0002,2]
[326666963,1715209845419,-67507.49755129,0.0002,2]
[326666964,1715209845429,-379.96231687,0.0002,2]
[326666965,1715209845439,-5467.6138057,0.0002,2]
[326666966,1715209845449,-200.0,0.0002,2]
[326666967,1715209845459,-135.65681153,0.000209,2]
[326666968,1715209845472,-4864.34318847,0.000209,2]
[326666969,1715209845482,-584.11436245,0.00020906,2]
[326666970,1715209845492,-379.85171232,0.00020906,2]
[326666971,1715209845501,-314.26273319,0.00020906,2]
[326666972,1715209845512,-155.01503805,0.00020906,2]
[326666973,1715209845521,-292.18119126,0.00020906,2]
[326666974,1715209845531,-468.91867687,0.00020906,2]
[326666975,1715209845541,-2091.31309739,0.00020907,2]
[326666993,1715209851072,-492.83470465,0.00019859,2]
[326666999,1715209851083,-500.0,0.00019859,2]
[326667007,1715209851094,-303.97964612,0.00020907,2]
[326667013,1715209851104,-15688.54119062,0.00020908,2]
[326667018,1715209851114,-5301.85501021,0.00020908,2]
[326667021,1715209851124,-411.82401176,0.00020908,2]
[326667024,1715209851134,-159.1475957,0.00020908,2]
[326667027,1715209851144,-525.97440028,0.00020908,2]
[326667030,1715209851154,-2785.94337812,0.00020908,2]
[326667033,1715209851163,-2103.48558965,0.00020908,2]
[326667036,1715209851173,-904.02671606,0.00020908,2]
[326667039,1715209851182,-1881.78834853,0.00020909,2]
[326667042,1715209851191,-281.48040967,0.00020911,2]
[326667045,1715209851201,-473.60917883,0.00020911,2]
[326667048,1715209851211,-671.99092668,0.00020911,2]
[326667050,1715209851220,-1344.84373992,0.00020911,2]
[326667054,1715209851231,-159.74347224,0.00020911,2]
[326667057,1715209851240,-2149.6062962,0.00020911,2]
[326667059,1715209851250,-474.60000088,0.00020911,2]
[326667061,1715209851260,-412.60897844,0.00020911,2]
[326667063,1715209851270,-1092.69843081,0.00020911,2]
[326667065,1715209851279,-5816.81570014,0.00020911,2]
[326667067,1715209851289,-206.61730233,0.00020911,2]
[326667069,1715209851299,-3072.48979336,0.00021029,2]
[326667071,1715209851315,-166.666667,0.00021644,2]
[326667073,1715209851330,-500.0,0.00021917,2]
[326667075,1715209851345,-166.666666,0.00021918,2]
[326667077,1715209851362,-159.42165086,0.00022,2]
[326667079,1715209851376,-485.533225,0.00022264,2]
[326667080,1715209851394,-3072.48979336,0.00022297,2]
[326667082,1715209851406,-166.666666,0.00022431,2]
[326667084,1715209851417,-166.666666,0.00022944,2]
[326667086,1715209851427,-264.54402462,0.00023,2]
[326667088,1715209851439,-714.82665538,0.00023,2]
[326667091,1715209851450,-3072.48979336,0.00023564,2]
[326667092,1715209851460,-685.51970393,0.000239,2]
[326667094,1715209851471,-13413.57370459,0.00024494,2]
[326667097,1715209851484,-13289.92981996,0.00024494,2]
[326667099,1715209851495,-2000.0,0.00024557,2]
[326667101,1715209851505,-306.0,0.00024626,2]
[326667103,1715209851516,-153.0,0.00024626,2]
[326667105,1715209851526,-153.0,0.00024626,2]
[326667107,1715209851536,-6240.44565782,0.00024657,5]
[326667109,1715209851547,-500.0,0.00024657,2]
[326667111,1715209851556,-500.0,0.00024657,2]
[326667113,1715209851566,-500.0,0.00024657,2]
[326667115,1715209851576,-500.0,0.00024657,2]
[326667123,1715209851712,-507.51,0.00024657,2]
[326667124,1715209851722,-500.0,0.00024657,2]
[326667125,1715209851733,-500.0,0.00024657,2]
[326667126,1715209851743,-500.0,0.00024657,2]
[326667127,1715209851752,-409.25382542,0.00024657,2]
[326667128,1715209851762,-500.0,0.00024657,2]
[326667129,1715209851773,-500.0,0.00024657,2]
[326667130,1715209851782,-500.0,0.00024657,2]
[326667131,1715209851793,-500.0,0.00024657,2]
[326667132,1715209851802,-269.37,0.00024657,2]
[326667133,1715209851812,-500.0,0.00024657,2]
[326667134,1715209851822,-500.0,0.00024657,2]
[326667135,1715209851832,-500.0,0.00024657,2]
[326667136,1715209851841,-500.0,0.00024657,2]
[326667137,1715209851852,-500.0,0.00024657,2]
[326667138,1715209851862,-189.19,0.00024657,2]
[326667139,1715209851872,-500.0,0.00024657,2]
[326667140,1715209851881,-500.0,0.00024657,2]
[326667141,1715209851891,-337.228,0.00024657,2]
[326667142,1715209851901,-500.0,0.00024657,2]
[326667143,1715209851910,-500.0,0.00024657,2]
[326667144,1715209851920,-500.0,0.00024657,2]
[326667145,1715209851930,-500.0,0.00024657,2]
[326667146,1715209851939,-500.0,0.00024657,2]
[326667147,1715209851949,-500.0,0.00024657,2]
[326667148,1715209851958,-500.0,0.00024657,2]
[326667149,1715209851968,-500.0,0.00024657,2]
[326667150,1715209851978,-500.0,0.00024657,2]
[326667151,1715209851987,-159.75043607,0.00024657,2]
[326667152,1715209851996,-500.0,0.00024657,2]
[326667153,1715209852006,-500.0,0.00024657,2]
[326667154,1715209852015,-500.0,0.00024657,2]
[326667155,1715209852024,-500.0,0.00024657,2]
[326667156,1715209852036,-500.0,0.00024657,2]
[326667157,1715209852045,-447.63399808,0.00024657,2]
[326667158,1715209852056,-500.0,0.00024657,2]
[326667159,1715209852065,-500.0,0.00024657,2]
[326667160,1715209852075,-500.0,0.00024657,2]
[326667161,1715209852085,-500.0,0.00024657,2]
[326667162,1715209852095,-500.0,0.00024657,2]
[326667163,1715209852104,-500.0,0.00024657,2]
[326667164,1715209852114,-500.0,0.00024657,2]
[326667165,1715209852123,-500.0,0.00024657,2]
[326667166,1715209852133,-418.77083576,0.00024657,2]
[326667167,1715209852143,-500.0,0.00024657,2]
[326667168,1715209852152,-700.06,0.00024657,2]
[326667169,1715209852162,-500.0,0.00024657,2]
[326667170,1715209852172,-2143.01,0.00024657,2]
[326667171,1715209852181,-500.0,0.00024657,2]
[326667172,1715209852191,-266.24272044,0.00024657,2]
[326667194,1715209858336,262.15305828,0.00015,2]
[326667196,1715210053216,309.41211698,0.00015,2]
[326667197,1715210065155,309.41211698,0.0001485,2]
[326667198,1715210065788,178.35181734,0.00015,2]
[326667200,1715210481882,929.9125183,0.00014,2]
[326667201,1715210490849,940.74470998,0.00015,2]
[326667202,1715211046092,-2396.15219991,0.0001587,2]
[326667204,1715211046104,-1894.38518573,0.0001587,2]
[326667207,1715211046114,-3083.29368043,0.00015871,2]
[326667211,1715211046129,-488.30202399,0.00015871,2]
[326667216,1715211046142,-1638.40429558,0.00015871,2]
[326667221,1715211046152,-1882.33843824,0.00015873,2]
[326667227,1715211046162,-167.173139,0.0001589,2]
[326667233,1715211046172,-3000.0,0.00016352,2]
[326667240,1715211046182,-1001.467285,0.00016352,2]
[326667246,1715211046192,-929.3633321,0.00017547,2]
[326667252,1715211046202,-788.21386085,0.00018472,2]
[326667255,1715211046212,-24900.0,0.00018473,2]
[326667259,1715211046222,-228.50656798,0.000189,2]
[326667262,1715211046233,-2785.94337812,0.00018993,2]
[326667264,1715211046243,-164.975406,0.00019178,2]
[326667266,1715211046253,-614.49795868,0.00019898,2]
[326667269,1715211046262,-1091.14792069,0.00019996,2]
[326667272,1715211046272,-411.63777765,0.00019996,2]
[326667275,1715211046283,-6935.2496157,0.00019996,2]
[326667278,1715211046293,-206.08719357,0.00019996,2]
[326667281,1715211046303,-199.34129563,0.00019996,2]
[326667284,1715211046313,-154.75253486,0.00019996,2]
[326667287,1715211046324,-500.0,0.00019996,2]
[326667289,1715211046334,-155.0150874,0.00019997,2]
[326667291,1715211046344,-666.93039453,0.00019997,2]
[326667293,1715211046353,-1160.18614579,0.00019997,2]
[326667295,1715211046366,-414.34044164,0.00019997,2]
[326667297,1715211046377,-8557.87295616,0.00019997,2]
[326667631,1715211050603,-25407.66331127,0.00019997,2]
[326667635,1715211050613,-15723.02697723,0.00019998,2]
[326667639,1715211050622,-744.35932258,0.00019998,2]
[326667644,1715211050635,-5808.69173479,0.00019998,2]
[326667648,1715211050644,-2103.48558965,0.00019998,2]
[326667651,1715211050653,-853.71939078,0.00019998,2]
[326667654,1715211050662,-446.47903035,0.00019998,2]
[326667656,1715211050672,-2151.93155539,0.00019998,2]
[326667658,1715211050681,-217.24571285,0.00019998,2]
[326667661,1715211050691,-472.55591663,0.00019998,2]
[326667663,1715211050701,-2091.62904815,0.00019999,2]
[326667664,1715211050710,-67507.49755129,0.0002,2]
[326667666,1715211050720,-5467.6138057,0.0002,2]
[326667668,1715211050730,-484.25139808,0.0002,2]
[326667670,1715211050739,-330.43257549,0.0002,2]
[326667672,1715211050749,-200.0,0.0002,2]
[326667674,1715211050759,-5000.0,0.000209,2]
[326667676,1715211050768,-305.12769332,0.00020912,2]
[326667678,1715211050778,-977.61647163,0.00020912,2]
[326667680,1715211050787,-315.23619623,0.00020912,2]
[326667682,1715211050797,-614.49795867,0.00021106,2]
[326667684,1715211050806,-166.666666,0.00021644,2]
[326667686,1715211050816,-166.666668,0.00021644,2]
[326667688,1715211050826,-166.666666,0.00021918,2]
[326667690,1715211050835,-159.42165086,0.00022,2]
[326667691,1715211050845,-614.49795867,0.00022315,2]
[326667693,1715211050855,-166.666666,0.00022431,2]
[326667695,1715211050864,-166.666666,0.00022944,2]
[326667697,1715211050874,-154.76784823,0.00023,2]
[326667699,1715211050885,-714.82665538,0.00023,2]
[326667700,1715211050895,-205.6,0.00023345,3]
[326667702,1715211050905,-166.666666,0.00023456,2]
[326667703,1715211050914,-614.49795867,0.00023523,2]
[326667705,1715211050924,-153.0,0.00023667,2]
[326667707,1715211050934,-153.0,0.00023667,2]
[326667708,1715211050945,-153.0,0.00023667,2]
[326667710,1715211050955,-228.50656798,0.000239,2]
[326667711,1715211050966,-166.666666,0.00023969,2]
[326667712,1715211050976,-205.6,0.00024434,3]
[326667713,1715211050986,-1440.30602565,0.00024444,5]
[326667714,1715211050999,-11100.3495423,0.00024444,5]
[326667715,1715211051010,-166.666666,0.00024482,2]
[326667716,1715211051133,-444.8567049,0.00024521,2]
[326667717,1715211051146,-153.0,0.00024521,2]
[326667718,1715211051156,-153.0,0.00024522,2]
[326667719,1715211051166,-1001.467285,0.00024528,2]
[326667720,1715211051176,-2000.0,0.00024557,2]
[326667721,1715211051185,-306.0,0.00024626,2]
[326667722,1715211051195,-16722.21470681,0.00024657,5]
[326667723,1715211051207,-1540.0,0.00024657,5]
[326671691,1715212196736,483.96104109,9.999e-05,2]
[326671692,1715212224629,19221.69193316,9.999e-05,2]
[326671693,1715212245080,2314.00821491,9.999e-05,2]
[326671694,1715212247340,-913.24602737,0.00015706,2]
[326671697,1715212247351,-969.09241087,0.00015706,2]
[326671699,1715212247361,-292.510394,0.00015707,2]
[326671701,1715212247370,-5210.0,0.00015866,2]
[326671703,1715212247379,-251.766967,0.0001589,2]
[326671705,1715212247388,-436.979902,0.0001589,2]
[326671706,1715212247404,-250.44761178,0.00016149,2]
[326671708,1715212247413,-307.7459628,0.00016149,2]
[326671711,1715212247423,-171.72456816,0.00016149,2]
[326671714,1715212247432,-732.68072689,0.00016149,2]
[326671717,1715212247443,-483.66880495,0.00016149,2]
[326671718,1715212247452,-314.36756752,0.0001615,2]
[326671720,1715212247462,-24900.0,0.00016151,2]
[326671722,1715212247472,-7946.92894707,0.00018,2]
[326671724,1715212247482,-177.074639,0.00019178,2]
[326671726,1715212247492,-153.62448969,0.000199,2]
[326671728,1715212247501,-447.76467997,0.0002,2]
[326671730,1715212247510,-379.96231687,0.0002,2]
[326671732,1715212247520,-2318.45890821,0.0002,2]
[326671810,1715212252600,-292.63120546,0.000189,2]
[326671815,1715212252611,-3149.15489749,0.0002,2]
[326671821,1715212252620,-3224.49935836,0.0002,2]
[326671826,1715212252632,-4718.2071591,0.0002,2]
[326671830,1715212252644,-59564.79103383,0.0002,2]
[326671834,1715212252654,-200.0,0.0002,2]
[326671837,1715212252663,-5000.0,0.000208,2]
[326671840,1715212252673,-2391.71099411,0.00020912,2]
[326671842,1715212252682,-2034.16195214,0.00020913,2]
[326671844,1715212252691,-153.62448966,0.00021544,2]
[326671846,1715212252700,-166.666667,0.00021644,2]
[326671848,1715212252710,-166.666666,0.00021644,2]
[326671849,1715212252720,-166.666666,0.00021918,2]
[326671850,1715212252730,-159.42165086,0.00022,2]
[326671851,1715212252740,-251.766967,0.00022264,2]
[326671852,1715212252750,-436.979902,0.00022264,2]
[326671853,1715212252759,-166.666666,0.00022431,2]
[326671855,1715212252770,-166.666666,0.00022944,2]
[326671857,1715212252780,-714.82665538,0.00023,2]
[326671859,1715212252789,-1001.23720707,0.00023,2]
[326671861,1715212252800,-153.62448966,0.00023187,2]
[326671863,1715212252809,-171.3,0.00023313,3]
[326671865,1715212252818,-166.666666,0.00023456,2]
[326671867,1715212252828,-292.510394,0.0002356,2]
[326671869,1715212252838,-620.0000004,0.00023615,2]
[326671871,1715212252847,-306.0,0.00023699,2]
[326671873,1715212252856,-292.63120546,0.000239,2]
[326671875,1715212252866,-166.666666,0.00023969,2]
[326671877,1715212252876,-9831.0,0.00024,2]
[326671879,1715212252885,-171.3,0.00024405,3]
[326671881,1715212252894,-166.666666,0.00024482,2]
[326671883,1715212252903,-456.6263819,0.00024521,2]
[326671885,1715212252913,-153.0,0.00024626,2]
[326671887,1715212252922,-153.0,0.00024626,2]
[326671889,1715212252932,-32880.3115477,0.00024657,5]
[326671891,1715212252941,-10615.15949594,0.00024657,2]
[326671893,1715212252950,-3966.74516132,0.00024657,2]
[326671895,1715212252960,-500.0,0.00024657,2]
[326671897,1715212252969,-500.0,0.00024657,2]
[326671899,1715212252979,-500.0,0.00024657,2]
[326671901,1715212252988,-500.0,0.00024657,2]
[326671904,1715212252998,-645.66,0.00024657,2]
[326671906,1715212253007,-500.0,0.00024657,2]
[326671908,1715212253016,-500.0,0.00024657,2]
[326671910,1715212253025,-642.90912912,0.00024657,2]
[326671911,1715212253036,-500.0,0.00024657,2]
[326671913,1715212253046,-500.0,0.00024657,2]
[326671915,1715212253056,-500.0,0.00024657,2]
[326671917,1715212253065,-500.0,0.00024657,2]
[326671919,1715212253075,-500.0,0.00024657,2]
[326671921,1715212253084,-500.0,0.00024657,2]
[326671923,1715212253094,-500.0,0.00024657,2]
[326671925,1715212253104,-500.0,0.00024657,2]
[326671927,1715212253114,-500.0,0.00024657,2]
[326671928,1715212253123,-500.0,0.00024657,2]
[326671930,1715212253132,-500.0,0.00024657,2]
[326671932,1715212253141,-500.0,0.00024657,2]
[326671934,1715212253151,-500.0,0.00024657,2]
[326671936,1715212253161,-500.0,0.00024657,2]
[326671938,1715212253171,-500.0,0.00024657,2]
[326671940,1715212253180,-500.0,0.00024657,2]
[326671942,1715212253190,-500.0,0.00024657,2]
[326671944,1715212253199,-500.0,0.00024657,2]
[326671946,1715212253208,-500.0,0.00024657,2]
[326671948,1715212253218,-500.0,0.00024657,2]
[326671950,1715212253228,-500.0,0.00024657,2]
[326671952,1715212253238,-500.0,0.00024657,2]
[326671954,1715212253247,-500.0,0.00024657,2]
[326671956,1715212253257,-500.0,0.00024657,2]
[326671958,1715212253266,-500.0,0.00024657,2]
[326671960,1715212253275,-500.0,0.00024657,2]
[326671962,1715212253285,-398.72176526,0.00024657,2]
[326671964,1715212253294,-500.0,0.00024657,2]
[326671966,1715212253303,-500.0,0.00024657,2]
[326671968,1715212253314,-500.0,0.00024657,2]
[326671970,1715212253323,-500.0,0.00024657,2]
[326671972,1715212253333,-500.0,0.00024657,2]
[326671974,1715212253342,-740.98,0.00024657,2]
[326671976,1715212253352,-500.0,0.00024657,2]
[326671978,1715212253361,-500.0,0.00024657,2]
[326671980,1715212253370,-500.0,0.00024657,2]
[326671982,1715212253380,-500.0,0.00024657,2]
[326671984,1715212253389,-500.0,0.00024657,2]
[326671986,1715212253400,-500.0,0.00024657,2]
[326671988,1715212253411,-500.0,0.00024657,2]
[326671990,1715212253421,-500.0,0.00024657,2]
[326671992,1715212253430,-500.0,0.00024657,2]
[326671994,1715212253441,-500.0,0.00024657,2]
[326671996,1715212253451,-505.83,0.00024657,2]
[326671998,1715212253460,-500.0,0.00024657,2]
[326672000,1715212253470,-500.0,0.00024657,2]
[326672002,1715212253480,-500.0,0.00024657,2]
[326672004,1715212253491,-500.0,0.00024657,2]
[326672006,1715212253501,-500.0,0.00024657,2]
[326672008,1715212253510,-410.99407787,0.00024657,2]
[326672010,1715212253520,-500.0,0.00024657,2]
[326672012,1715212253529,-500.0,0.00024657,2]
[326672014,1715212253539,-500.0,0.00024657,2]
[326672016,1715212253548,-500.0,0.00024657,2]
[326672018,1715212253557,-500.0,0.00024657,2]
[326672020,1715212253567,-500.0,0.00024657,2]
[326672022,1715212253576,-564.20134012,0.00024657,2]
[326672024,1715212253586,-500.0,0.00024657,2]
[326672026,1715212253595,-516.63,0.00024657,2]
[326672028,1715212253604,-500.0,0.00024657,2]
[326672030,1715212253614,-500.0,0.00024657,2]
[326672032,1715212253623,-500.0,0.00024657,2]
[326672034,1715212253633,-500.0,0.00024657,2]
[326672036,1715212253642,-930.63,0.00024657,2]
[326672039,1715212253652,-505.08778106,0.00024657,2]
[326672041,1715212253661,-500.0,0.00024657,2]
[326672043,1715212253673,-500.0,0.00024657,2]
[326672045,1715212253683,-1943.22,0.00024657,2]
[326672047,1715212253693,-165.92191102,0.00024657,2]
[326672049,1715212253703,-500.0,0.00024657,2]
[326672051,1715212253712,-1308.86,0.00024657,2]
[326672053,1715212253721,-500.0,0.00024657,2]
[326672055,1715212253731,-500.0,0.00024657,2]
[326672057,1715212253741,-3460.76,0.00024657,2]
[326672059,1715212253750,-500.0,0.00024657,2]
[326672061,1715212253761,-184.77112715,0.00024657,2]
[326672077,1715212253900,-833.54,0.00024657,2]
[326672079,1715212253911,-1082.16,0.00024657,2]
[326672081,1715212253921,-501.08460618,0.00024657,2]
[326672083,1715212253930,-500.0,0.00024657,2]
[326672085,1715212253939,-500.0,0.00024657,2]
[326672086,1715212253949,-532.35948568,0.00024657,2]
[326672088,1715212253958,-1012.78,0.00024657,2]
[326672090,1715212253968,-2980.12293712,0.00024657,2]
[326672092,1715212253977,-500.0,0.00024657,2]
[326672094,1715212253986,-500.0,0.00024657,2]
[326672096,1715212253996,-500.0,0.00024657,2]
[326672098,1715212254005,-500.0,0.00024657,2]
[326672100,1715212254015,-500.0,0.00024657,2]
[326672102,1715212254024,-500.0,0.00024657,2]
[326672104,1715212254033,-500.0,0.00024657,2]
[326672106,1715212254043,-1357.13,0.00024657,2]
[326672108,1715212254052,-500.0,0.00024657,2]
[326672110,1715212254061,-500.0,0.00024657,2]